Cogmind - Beta 16 @@@ ROGUE MODE // 2025.11.06 @ 21:03:26 Player: shapeshifter Result: Destroyed by X-62 Marksman with Gauss Rifle Performance ------------- Evolutions (4) 2000 Regions Visited (16) 3200 Robots Destroyed (214) 1070 Value Destroyed (11545) 11545 Prototype IDs (42) 840 Alien Tech Used (0) 0 Bonus (6486) 6486 TOTAL SCORE: 25141 Bonus ------- High Alert Combat Kills 1650 Follower Combat Kills 1369 Entered Garrisons 800 Used RIF Installer 2500 Aligned with FarCom 300 Friendly Fire -133 Cogmind --------- Core Integrity 0/850 Matter 201/300 Energy 96/100 System Corruption 17% Temperature Warm (157) Movement Rolling (175) Ox5 Location -6/Factory Parts ------- > --- POWER (1) -------- (None) > --- PROPULSION (2) --- Armored Huge Wheel > --- UTILITY (10) ----- Cargo Storage Unit Active Sensor Suite Layered Medium Armor Plating Graphene Brace Improved Trap Extractor (4/6 Gamma Bomb) > --- WEAPON (2) ------- Antimatter Cannon Remote Datajack > --- INVENTORY (30) --- Reinforced Deuterium Engine Improved Heavy Treads Improved Heavy Treads Improved Heavy Treads Compact Wheel Advanced Heat Sink Gravity Neutralizer Improved Target Analyzer Layered Medium Armor Plating Layered Medium Armor Plating Graphene Brace Graphene Brace Graphene Brace Thermal Shield EM Disruption Field Improved Hardlight Generator Relay Coupler [Grunt] (48) Relay Coupler [Specialist] (37) Relay Coupler [Hunter] (21) Relay Coupler [Behemoth] (15) Relay Coupler [Behemoth] (15) Shock Rifle Antimatter Cannon Antimatter Cannon Antimatter Cannon Peak State ------------ > --- POWER ------------ Light Antimatter Reactor > --- PROPULSION ------- Armored Huge Wheel > --- UTILITY ---------- Cargo Storage Unit Active Sensor Suite Layered Medium Armor Plating Graphene Brace Graphene Brace Relay Coupler [Grunt] Relay Coupler [Specialist] > --- WEAPON ----------- Antimatter Cannon Antimatter Cannon > --- INVENTORY -------- Reinforced Deuterium Engine Improved Heavy Treads Improved Heavy Treads Improved Heavy Treads Compact Wheel Advanced Heat Sink Gravity Neutralizer Improved Target Analyzer Layered Medium Armor Plating Layered Medium Armor Plating Graphene Brace Graphene Brace Thermal Shield EM Disruption Field Improved Hardlight Generator Relay Coupler [Grunt] Relay Coupler [Specialist] Relay Coupler [Hunter] Relay Coupler [Behemoth] Relay Coupler [Behemoth] Improved Trap Extractor Shock Rifle Antimatter Cannon Antimatter Cannon Antimatter Cannon Remote Datajack Remote Datajack [Rating: 98] Favorites ----------- Power Light Antimatter Reactor Engine Reinforced Ion Engine Power Core Micro Nuclear Core Reactor Light Antimatter Reactor Propulsion Light Treads Treads Light Treads Wheel Compact Wheel Utility Improved Cooling System Device Improved Cooling System Storage High-capacity Storage Unit Processor Target Analyzer Hackware Relay Coupler [Grunt] Protection Light Armor Plating Weapon Remote Datajack Energy Gun Heavy Laser Energy Cannon Plasma Cannon Ballistic Gun Heavy Assault Rifle Ballistic Cannon Magnetic Acceleration Cannon Launcher Improved Grenade Launcher Special Weapon Remote Datajack Special Melee Weapon Datajack Build | -11 -10 -10 -9 -9 -9 -8 -8 -8 -8 -7 -7 -7 -7 -6 -6 -6 ------- Run | Yrd Mat Min Mat Min Exi Min Mat Gar Mat Fac Gar Fac Gar Fac Gar Fac Slots Evolved 8 | . . . 2 . . . 2 . . 2 . . . 2 . . Power . | . . . . . . . . . . . . . . . . . Propulsion . | . . . . . . . . . . . . . . . . . Utility 8 | . . . 2 . . . 2 . . 2 . . . 2 . . Weapon . | . . . . . . . . . . . . . . . . . Parts Attached 168 | 7 1 3 11 3 2 5 25 11 6 8 27 . 21 3 16 19 Power 16 | 1 1 . 1 . . 1 3 1 . . 4 . 2 . 1 1 Engine 5 | 1 1 . 1 . . . 1 1 . . . . . . . . Core 6 | . . . . . . 1 2 . . . 2 . . . 1 . Reactor 5 | . . . . . . . . . . . 2 . 2 . . 1 Propulsion 30 | 2 . 2 4 . . 2 4 1 1 . 6 . 2 . 1 5 Treads 24 | 2 . . 4 . . 2 4 1 1 . 5 . 2 . 1 2 Leg . | . . . . . . . . . . . . . . . . . Wheel 6 | . . 2 . . . . . . . . 1 . . . . 3 Hover . | . . . . . . . . . . . . . . . . . Flight . | . . . . . . . . . . . . . . . . . Utility 76 | 2 . . 4 1 1 1 11 6 5 5 11 . 10 3 12 4 Device 24 | 1 . . 1 . . . 5 3 1 3 4 . 2 1 1 2 Storage 6 | 1 . . 1 . 1 . . . . . 1 . 1 . 1 . Processor 5 | . . . 1 . . . . 1 . . 1 . . . 2 . Hackware 31 | . . . . . . . 2 1 3 2 5 . 7 2 8 1 Protection 10 | . . . 1 1 . 1 4 1 1 . . . . . . 1 Artifact . | . . . . . . . . . . . . . . . . . Weapon 46 | 2 . 1 2 2 1 1 7 3 . 3 6 . 7 . 2 9 Energy Gun 10 | . . . . . . . 4 1 . . . . . . 1 4 Energy Cannon 1 | . . . . . . . . . . . 1 . . . . . Ballistic Gun 12 | 2 . 1 2 2 . 1 2 1 . . 1 . . . . . Ballistic Cannon 12 | . . . . . . . . . . 1 2 . 6 . . 3 Launcher 2 | . . . . . . . 1 . . . 1 . . . . . Special Weapon 8 | . . . . . . . . 1 . 2 1 . 1 . 1 2 Impact Weapon . | . . . . . . . . . . . . . . . . . Slashing Weapon . | . . . . . . . . . . . . . . . . . Piercing Weapon . | . . . . . . . . . . . . . . . . . Special Melee Weapon 1 | . . . . . 1 . . . . . . . . . . . Unidentified Prototypes 4 | . . . . . . . 2 . . . . . . . . 2 Parts Lost 57 | . 1 4 2 . . 4 9 . 3 1 10 . 3 2 4 14 Power 7 | . 1 1 . . . . 1 . . . 2 . 1 . . 1 Propulsion 8 | . . 2 . . . 2 1 . . . 2 . . . . 1 Utility 24 | . . . 1 . . 1 5 . 2 1 3 . . 2 3 6 Weapon 18 | . . 1 1 . . 1 2 . 1 . 3 . 2 . 1 6 Highest Loss Streak 4 | . 1 2 2 . . 3 4 . 2 1 3 . 2 2 1 3 To Critical Strikes 1 | . . . 1 . . . . . . . . . . . . . Average Backups 18 | 3 7 5 7 11 12 16 17 18 19 18 21 23 23 24 22 22 Power 1 | . . . . . . . . . . . 1 4 2 2 3 2 Propulsion 2 | 1 3 2 . 2 2 1 . 1 . 1 4 5 4 3 2 3 Utility 9 | . 1 2 3 5 5 8 6 9 12 7 8 9 12 16 14 14 Weapon 3 | 1 1 1 1 2 3 4 6 2 3 6 4 4 2 2 1 1 Tool/Special . | . . . . . . . . . . . . . . . . . Unused Backups 81 | . . . 4 . . 1 11 12 6 7 9 . 9 . 1 21 Power 4 | . . . . . . . 1 1 . . . . 1 . . 1 Propulsion 10 | . . . 2 . . . . . . 4 2 . . . . 2 Utility 51 | . . . 1 . . . 7 8 4 2 6 . 8 . 1 14 Weapon 15 | . . . 1 . . 1 2 3 2 1 1 . . . . 4 Tool/Special 1 | . . . . . . . 1 . . . . . . . . . Average Slot Usage (%) 89 | . 99 94 85 100 100 93 96 97 94 94 87 84 83 78 84 72 Engine 4 | . 13 10 5 11 11 7 . 9 9 6 . . . . . . Core 1 | . . . . . . 3 8 . . . 4 . . . 1 3 Reactor 1 | . . . . . . . . . . . 1 7 7 6 4 2 Treads 13 | . 28 4 16 22 22 21 18 18 18 15 8 7 7 6 6 4 Device 16 | . 14 14 14 11 11 11 13 18 12 20 25 23 18 19 18 10 Storage 8 | . 14 14 11 11 11 11 9 9 9 7 7 7 7 6 6 6 Processor 6 | . . . 4 11 11 11 9 17 11 . 1 7 7 . 3 3 Hackware 13 | . . . . . . . 12 . 14 23 19 15 19 24 28 24 Protection 3 | . . . 5 11 11 9 9 8 4 4 . . . . . . Energy Gun 1 | . . . . . . . 8 . 4 . . . . . 1 4 Ballistic Gun 7 | . 28 27 21 22 13 18 8 15 9 . . . . . . . Ballistic Cannon 2 | . . . . . . . . . . 6 3 . 9 6 4 2 Special Weapon 2 | . . . . . . . . . . 6 6 7 3 6 6 3 Peak Build Rating 98 | 7 7 7 14 15 19 24 52 49 50 54 80 79 85 80 83 98 Average Rating 51 | 5 6 6 10 14 16 20 40 43 45 50 65 79 76 73 78 80 On Entrance 39 | . 7 7 6 14 15 19 24 47 42 48 53 79 79 76 73 81 Avg Prop Armor Cover (%) 12 | . . 12 . . . . . . . . . . . . . . Naked Turns . | . . . . . . . . . . . . . . . . . Heaviest Build 182 | 15 15 15 56 58 58 62 69 71 72 76 165 165 170 169 170 182 Greatest Support 87 | 40 40 26 40 40 40 40 56 48 48 48 87 87 87 87 87 87 Greatest Overweight (x) 11 | . . 1 1 1 1 1 1 1 1 1 2 1 1 1 2 11 Average Overweight (x) . | . . . . 1 1 1 1 1 1 1 1 1 1 1 1 2 Largest Inventory Capacity 30 | 8 8 8 20 20 20 20 20 20 20 20 30 30 30 30 30 30 Average Capacity 23 | 7 8 8 9 20 20 20 20 20 20 20 26 30 30 30 30 30 Most Carried 30 | 5 8 8 11 15 17 20 20 20 20 20 30 29 30 30 30 30 Average Carried 21 | 3 7 5 7 11 12 18 19 19 19 19 26 29 28 29 27 26 Final Capacity 30 | 8 8 8 20 20 20 20 20 20 20 20 30 30 30 30 30 30 Final Carried 30 | 4 8 6 11 11 17 18 20 20 20 20 29 29 30 30 30 28 Class Distribution -------------------- 25% | Botlord-Mutant 24% | Bothacker-Mutant 24% | Scavenger-Mutant 12% | Mutant 5% | Hauler-Mutant 3% | Botlord-Skirmisher 3% | Hacker-Mutant Dominant Class ---------------- Mutant | -10/Materials Mutant | -10/Mines Scavenger-Mutant | -9/Materials Scavenger-Mutant | -9/Mines Scavenger-Mutant | -9/Exiles Scavenger-Mutant | -8/Mines Mutant | -8/Materials Scavenger-Mutant | -8/Garrison Bothacker-Mutant | -8/Materials Bothacker-Mutant | -7/Factory Bothacker-Mutant | -7/Garrison Hauler-Mutant | -7/Factory Botlord-Mutant | -7/Garrison Botlord-Mutant | -6/Factory Botlord-Mutant | -6/Garrison Botlord-Mutant | -6/Factory Resources | -11 -10 -10 -9 -9 -9 -8 -8 -8 -8 -7 -7 -7 -7 -6 -6 -6 ----------- Run | Yrd Mat Min Mat Min Exi Min Mat Gar Mat Fac Gar Fac Gar Fac Gar Fac Matter Collected 6815 | 237 272 169 315 83 136 167 373 617 358 364 886 . 743 170 1033 892 Remotely . | . . . . . . . . . . . . . . . . . Salvage Created 9998 | 59 352 199 477 116 . 283 1713 1462 1040 271 1380 . 461 52 1091 1042 Parts 459 | 6 21 18 28 7 . 12 92 86 56 16 44 . 18 1 22 32 Haulers Intercepted 5 | . . . 1 . . . 3 . 1 . . . . . . . Recyclers Shooed 6 | . 1 . . . . . 2 . . . . . . . . 3 Parts Field Recycled . | . . . . . . . . . . . . . . . . . Retrieved Matter . | . . . . . . . . . . . . . . . . . Parts Self-Destructed . | . . . . . . . . . . . . . . . . . Prevented . | . . . . . . . . . . . . . . . . . Parts Restored . | . . . . . . . . . . . . . . . . . Kills | -11 -10 -10 -9 -9 -9 -8 -8 -8 -8 -7 -7 -7 -7 -6 -6 -6 ------- Run | Yrd Mat Min Mat Min Exi Min Mat Gar Mat Fac Gar Fac Gar Fac Gar Fac Combat Hostiles Destroyed 180 | . 11 8 10 4 . 6 33 34 18 8 17 . 11 1 8 11 Guns 131 | . 11 8 10 4 . 6 32 34 18 . . . 1 . . 7 Cannons 41 | . . . . . . . . . . 8 14 . 9 1 8 1 AOE 4 | . . . . . . . 1 . . . 1 . . . . 2 Classes Destroyed 19 | 1 3 . 3 . . 1 5 1 2 . 2 . . . . 1 Worker 6 | . . . . . . . . . 1 . . . . . . 5 Builder 3 | . . . . . . . 1 . 1 1 . . . . . . Tunneler 5 | 3 . 1 1 . . . . . . . . . . . . . Hauler 5 | . . . 1 . . . 3 . 1 . . . . . . . Recycler 6 | . . . . . . . 1 . 1 . . . . . . 4 Watcher 8 | . 3 . 1 . . . . . 1 2 . . . . . 1 Swarmer 40 | . 6 6 3 2 . . 7 9 2 2 . . . . 3 . Cutter 1 | . . . . . . . . . . . 1 . . . . . Grunt 71 | . 5 2 3 2 . 5 14 12 10 3 7 . 3 . 3 2 Brawler 9 | . . . . . . 1 1 3 2 . 1 . . 1 . . Duelist 7 | . . . 1 . . . 1 2 . 1 . . . . . 2 Protector 1 | . . . . . . . . . 1 . . . . . . . Sentry 26 | . . . 3 . . . 6 2 3 . 4 . 5 . 2 1 Demolisher 1 | . . . . . . . . . . . 1 . . . . . Specialist 5 | . . . . . . . 2 3 . . . . . . . . Hunter 5 | . . . . . . . 1 . . 1 3 . . . . . Programmer 12 | . . . . . . . . 3 . 1 . . 3 . . 5 Heavy 1 | . . . . . . . 1 . . . . . . . . . Behemoth 1 | . . . . . . . . . . . . . . . . 1 Butcher 1 | . . . . . . . . . . . . . . . 1 . Best Kill Streak 15 | 3 3 3 4 2 . 2 15 6 10 3 3 . 2 1 6 7 Combat Bots Only 11 | . 3 3 4 2 . 2 11 6 7 3 3 . 2 1 6 2 Max Kills in Single Turn 2 | 1 1 2 1 2 . 1 2 2 2 2 1 . 1 1 1 2 Gunslinging 1 | . . 1 . 1 . . 1 . . . . . . . . . Exploded 1 | . . . . . . . 1 . . . 1 . . . . 1 Melee . | . . . . . . . . . . . . . . . . . Uniques/NPCs Destroyed . | . . . . . . . . . . . . . . . . . Combat | -11 -10 -10 -9 -9 -9 -8 -8 -8 -8 -7 -7 -7 -7 -6 -6 -6 -------- Run | Yrd Mat Min Mat Min Exi Min Mat Gar Mat Fac Gar Fac Gar Fac Gar Fac Hostile Shots Fired 1429 | . 49 49 62 36 . 45 148 76 43 58 215 . 264 7 132 245 Missed 470 | . 15 15 25 12 . 11 41 19 9 17 71 . 115 2 54 64 Hits 959 | . 34 34 37 24 . 34 107 57 34 41 144 . 149 5 78 181 Melee 23 | . . . 1 . . . 1 3 . . 1 . . 4 1 12 Projectile 936 | . 34 34 36 24 . 34 106 54 34 41 143 . 149 1 77 169 AOE 8 | . . . . . . . . . . . 8 . . . . . Critical Strikes 34 | . . . 1 1 . 1 5 4 1 . 3 . 2 . 1 15 Actively Blocked 11 | . . . . . . . . . . . 3 . . . 1 7 Part Disruptions 4 | . . . . . . . . . . . . . 1 . . 3 Damage Taken 13662 | . 290 391 502 229 . 560 1675 683 393 519 1991 . 1558 139 817 3915 Core 2113 | . 55 . 147 44 . 79 280 73 72 61 206 . 238 . 60 798 Absorbed by Shields 576 | . . . . . . . 91 213 101 . . . . 50 121 . Reduced by Siege Mode 49 | . . . . . . . . . . . 49 . . . . . Redirected to Shielding 66 | . . . 6 6 . . 44 10 . . . . . . . . Core Remaining (%) 51 | 100 . 78 . . . 32 . . 22 . . . 27 . . . Volleys Fired 961 | 4 31 26 50 18 . 35 79 56 26 56 170 . 63 27 154 166 Largest 2 | 2 2 2 2 2 . 2 2 2 2 1 1 . 2 1 1 2 Hottest 160 | 40 40 40 43 43 . 43 138 53 53 40 80 . 88 44 75 160 Shots Fired 1458 | 8 62 51 98 36 . 67 184 170 87 57 170 . 97 26 157 188 Gun 921 | 8 62 51 98 36 . 67 181 168 87 1 . . 15 . 58 89 Cannon 410 | . . . . . . . . . . 44 149 . 65 14 77 61 Launcher 7 | . . . . . . . 3 . . . 1 . . . . 3 Special 120 | . . . . . . . . 2 . 12 20 . 17 12 22 35 Kinetic 904 | 8 62 51 98 36 . 67 63 158 52 44 58 . 55 14 77 61 Thermal 425 | . . . . . . . 118 10 35 1 91 . 25 . 58 87 Explosive 4 | . . . . . . . . . . . 1 . . . . 3 Electromagnetic 5 | . . . . . . . 3 . . . . . . . . 2 Robot Hit Streak 40 | 5 7 11 8 3 . 7 15 28 11 10 40 . 14 4 21 15 Robot Miss Streak 8 | . 5 4 6 3 . 4 8 3 3 3 2 . 2 2 2 5 Penetration Max 1 | . . . . . . . . 1 . 1 . . . . . . Secondary Targets 16 | . 3 3 2 1 . 1 4 2 . . . . . . . . Max Gunslinging Chain 1 | . 1 1 1 1 . 1 1 1 . . . . . . . . Autonomous 145 | . . . . . . . 31 62 35 1 . . 16 . . . Shots Hit Robots 943 | 5 32 32 58 19 5 42 134 103 63 37 125 . 56 12 120 100 Core Hits 399 | 3 18 12 24 7 . 16 60 51 35 11 45 . 13 2 43 59 Critical Kills 14 | . . . . 1 . 2 2 4 2 . 3 . . . . . Critical Parts Destroyed 16 | . . . 2 1 . 2 2 5 4 . . . . . . . Critical Strikes 63 | . . . 2 2 . 4 12 9 6 2 5 . 3 . 13 5 Burn 18 | . . . . . . . 8 . . . . . . . 8 2 Meltdown 3 | . . . . . . . . . . . 3 . . . . . Destroy 27 | . . . 2 2 . 4 4 9 6 . . . . . . . Blast 15 | . . . . . . . . . . 2 2 . 3 . 5 3 Melee Attacks 5 | . . . . . 5 . . . . . . . . . . . Impact . | . . . . . . . . . . . . . . . . . Slashing . | . . . . . . . . . . . . . . . . . Piercing . | . . . . . . . . . . . . . . . . . Sneak Attacks 5 | . . . . . 5 . . . . . . . . . . . Combat Hostiles . | . . . . . . . . . . . . . . . . . Follow-up Attacks . | . . . . . . . . . . . . . . . . . Damage Inflicted 20129 | 61 418 399 746 249 . 491 3095 2599 1457 928 2897 . 1318 81 2753 2637 Guns 12325 | 61 418 399 746 249 . 491 2813 2599 1457 29 . . 426 . 1010 1627 Cannons 7021 | . . . . . . . . . . 770 2827 . 892 81 1743 708 Explosions 762 | . . . . . . . 282 . . 129 70 . . . . 281 Melee . | . . . . . . . . . . . . . . . . . Ramming 21 | . . . . . . . . . . . . . . . . 21 Kinetic 11676 | 61 418 399 746 249 . 491 1194 2366 690 770 868 . 892 81 1743 708 Thermal 7883 | . . . . . . . 1720 233 767 158 1959 . 426 . 1010 1610 Explosive 351 | . . . . . . . . . . . 70 . . . . 281 Electromagnetic 198 | . . . . . . . 181 . . . . . . . . 17 Impact . | . . . . . . . . . . . . . . . . . Slashing . | . . . . . . . . . . . . . . . . . Piercing . | . . . . . . . . . . . . . . . . . Highest Corruption 17 | . . . . . . . 2 4 4 . . . 1 8 8 17 Average Corruption 6 | . . . . . . . 2 2 4 . . . 1 8 8 10 Corruption Purged . | . . . . . . . . . . . . . . . . . Corruption Blocked . | . . . . . . . . . . . . . . . . . Effects 226 | . . . . . . . 3 29 13 . . . 4 18 85 74 Message Errors 55 | . . . . . . . 2 8 3 . . . . 9 16 17 Matter Fused 61 | . . . . . . . 1 10 6 . . . 3 2 22 17 Heat Flow Errors 23 | . . . . . . . . 2 . . . . . 3 10 8 Energy Discharges 25 | . . . . . . . . 3 1 . . . 1 1 15 4 Parts Rejected 1 | . . . . . . . . . . . . . . . . 1 Parts Fused 2 | . . . . . . . . . . . . . . . 2 . Data Loss (minor) 28 | . . . . . . . . 5 1 . . . . . 10 12 Data Loss (major) 8 | . . . . . . . . 1 1 . . . . 2 2 2 Misfires 9 | . . . . . . . . . 1 . . . . . 5 3 Alerts 2 | . . . . . . . . . . . . . . . 1 1 Misdirections 4 | . . . . . . . . . . . . . . . . 4 Weapon Failures 8 | . . . . . . . . . . . . . . 1 2 5 Overload Shots . | . . . . . . . . . . . . . . . . . Overflow Damage 85 | . . . . . . . . . . 26 12 . 14 . 22 11 Projectiles 77 | . . . . . . . . . . 26 12 . 14 . 22 3 Explosions 8 | . . . . . . . . . . . . . . . . 8 Melee . | . . . . . . . . . . . . . . . . . Knockbacks 29 | . . . . . . . . . . 10 7 . 2 . 5 5 Impact 1 | . . . . . . . . . . . . . . . . 1 Kinetic 27 | . . . . . . . . . . 9 7 . 2 . 5 4 Secondary 1 | . . . . . . . . . . 1 . . . . . . Self-Inflicted Damage 160 | . . . . . . . . . . . . . 74 . . 86 Shots 3 | . . . . . . . . . . . . . 1 . . 2 Rammed 3 | . . . . . . . . . . . . . . . . 3 Targets Rammed 3 | . . . . . . . . . . . . . . . . 3 Kicked . | . . . . . . . . . . . . . . . . . Crushed . | . . . . . . . . . . . . . . . . . Highest Temperature 676 | . . 11 1 1 . 4 333 166 . . 113 . . 164 260 676 Average Temperature 107 | . . 3 1 1 . 3 112 72 . . 27 . . 85 88 141 Received Heat Transfer 3460 | . 24 159 129 66 . 324 622 177 205 87 384 . 396 14 231 642 Effects 14 | . . . . . . . 1 . . . . . . . . 13 Shutdowns 2 | . . . . . . . . . . . . . . . . 2 Energy Bleed 3 | . . . . . . . 1 . . . . . . . . 2 Interference 4 | . . . . . . . . . . . . . . . . 4 Short Circuit 1 | . . . . . . . . . . . . . . . . 1 Damage (major) 3 | . . . . . . . . . . . . . . . . 3 Damage (core) 1 | . . . . . . . . . . . . . . . . 1 Siege Activations 1 | . . . . . . . . . . . 1 . . . . . Total Turns 22 | . . . . . . . . . . . 22 . . . . . Longest Duration 22 | . . . . . . . . . . . 22 . . . . . Martial Activations . | . . . . . . . . . . . . . . . . . Shielding Activations . | . . . . . . . . . . . . . . . . . Robots Disrupted . | . . . . . . . . . . . . . . . . . Combat Hostiles . | . . . . . . . . . . . . . . . . . Robots Corrupted . | . . . . . . . . . . . . . . . . . Combat Hostiles . | . . . . . . . . . . . . . . . . . Parts Fried . | . . . . . . . . . . . . . . . . . Impact Corruptions . | . . . . . . . . . . . . . . . . . Robots Melted 9 | . . . . . . . . . . . 3 . 1 . 3 2 Combat Hostiles 4 | . . . . . . . . . . . 2 . 1 . . 1 Parts Melted 45 | . . . . . . . 9 1 2 . 12 . . . 10 11 Heat Transferred 16230 | . . . . . . . 3837 296 842 137 3850 . 518 . 3100 3650 Parts Sabotaged . | . . . . . . . . . . . . . . . . . Parts Stolen . | . . . . . . . . . . . . . . . . . Parts Stripped . | . . . . . . . . . . . . . . . . . Power Chain Reactions 1 | . . . . . . . 1 . . . . . . . . . Alert | -11 -10 -10 -9 -9 -9 -8 -8 -8 -8 -7 -7 -7 -7 -6 -6 -6 ------- Run | Yrd Mat Min Mat Min Exi Min Mat Gar Mat Fac Gar Fac Gar Fac Gar Fac Maximum Alert Level 5 | . . . . . . . 2 4 3 1 5 3 4 2 3 2 Low Security (%) 42 | 100 100 100 100 100 . 100 83 . . 59 3 . . . 5 93 Level 1 6 | . . . . . . . 2 2 . 40 8 . . 58 6 5 Level 2 17 | . . . . . . . 14 9 50 . 2 . 26 41 66 1 Level 3 21 | . . . . . . . . 46 49 . 35 100 67 . 22 . Level 4 10 | . . . . . . . . 41 . . 45 . 6 . . . Level 5 . | . . . . . . . . . . . 4 . . . . . High Security . | . . . . . . . . . . . . . . . . . Max Security . | . . . . . . . . . . . . . . . . . Peak Influence 1606 | 5 91 85 155 70 . 40 524 1583 888 291 1606 842 1111 583 1037 543 Initial 842 | . . 13 . 57 . . . 338 771 291 140 842 561 583 177 543 Average 474 | . 39 29 44 11 . 5 104 1064 690 187 995 825 823 394 570 74 Influence Increases 8606 | 15 372 210 323 145 . 155 1038 1245 527 422 1786 . 740 48 1020 560 Destroy 0b10 Robot/C 4051 | . 220 160 200 80 . 120 660 680 340 220 648 . 288 30 210 195 Destroy 0b10 Robot/NC 231 | 15 15 5 15 . . . 25 . 30 20 30 . . . 36 40 Destroy Leader 596 | . 36 30 54 20 . 20 156 20 74 34 40 . 14 8 16 74 Allied During Kill 308 | . . . . . . . . . . 11 208 . 45 3 38 3 Trap Triggered on 0b10 8 | . . . . . . . . . . . . . . . . 8 Successful Hack 140 | . 10 . 7 . . . 41 30 14 . 19 . 10 . . 9 Select Force Hacks 30 | . 30 . . . . . . . . . . . . . . . Disable Machine 303 | . . 15 . . . . 60 . . 90 . . 30 . 48 60 Anti-Garrison Action 2095 | . . . . . . . . 450 . . 730 . 275 . 640 . Destroy Structure 332 | . 1 . 2 . . . 51 35 9 47 81 . 58 7 20 21 Partial Spotted 57 | . 15 . . . . . 15 . 15 . . . . . 12 . Lose Combat Pursuer 305 | . 45 . 45 45 . 15 30 30 45 . 30 . 20 . . . Active Sensor Use 150 | . . . . . . . . . . . . . . . . 150 Influence Decreases 8484 | 15 338 244 176 292 . 155 518 182 1468 863 381 804 431 906 236 1475 Entered New Map 3620 | . . 21 . 90 . . . 182 812 351 61 764 241 528 76 494 Time Decay 3077 | 15 328 200 166 202 . 125 428 . 326 422 . 40 . 278 . 547 Lost Part 495 | . 10 23 10 . . 30 90 . 30 10 100 . 30 20 40 102 Lost Ally 717 | . . . . . . . . . . 80 220 . 160 80 120 57 Purge Threat 575 | . . . . . . . . . 300 . . . . . . 275 Squads Dispatched 25 | . 4 . 1 . . . 4 . 4 4 . . . . . 8 Investigation 9 | . 2 . . . . . 1 . 2 2 . . . . . 2 Extermination 4 | . . . . . . . . . . 1 . . . . . 3 Reinforcement 11 | . 2 . 1 . . . 3 . 1 1 . . . . . 3 Assault 1 | . . . . . . . . . 1 . . . . . . . Garrison . | . . . . . . . . . . . . . . . . . Intercept . | . . . . . . . . . . . . . . . . . Searches Triggered . | . . . . . . . . . . . . . . . . . Construction Impeded 3 | . . . . . . . 1 . 1 . . . . . . 1 Haulers Reinforced . | . . . . . . . . . . . . . . . . . Active Scanning Responses 2 | . . . . . . . . . . . . . . . . 2 Cargo Convoy Interrupts . | . . . . . . . . . . . . . . . . . Stealth | -11 -10 -10 -9 -9 -9 -8 -8 -8 -8 -7 -7 -7 -7 -6 -6 -6 --------- Run | Yrd Mat Min Mat Min Exi Min Mat Gar Mat Fac Gar Fac Gar Fac Gar Fac Distress Signals 14 | . 2 . 3 . . . 2 2 1 1 . . . 1 . 2 Communications Jammed . | . . . . . . . . . . . . . . . . . Distress Signals . | . . . . . . . . . . . . . . . . . Times Spotted 333 | . 18 8 17 6 . 6 40 38 22 21 40 . 37 9 29 42 Peak Tracking Total 7 | . 4 3 5 3 . 3 6 7 5 3 4 . 6 3 7 5 Tactical Retreats 16 | . 1 . 3 2 . 1 2 1 3 . 1 . 2 . . . Traps | -11 -10 -10 -9 -9 -9 -8 -8 -8 -8 -7 -7 -7 -7 -6 -6 -6 ------- Run | Yrd Mat Min Mat Min Exi Min Mat Gar Mat Fac Gar Fac Gar Fac Gar Fac Traps Triggered 38 | . 1 . . . . . 1 11 1 1 8 . 2 2 8 3 Indirectly . | . . . . . . . . . . . . . . . . . Trap Hack Attempts . | . . . . . . . . . . . . . . . . . Triggered . | . . . . . . . . . . . . . . . . . Disarmed . | . . . . . . . . . . . . . . . . . Reprogrammed . | . . . . . . . . . . . . . . . . . Reused 1 | . . . . . . . . . . . . . . . . 1 Traps Extracted . | . . . . . . . . . . . . . . . . . Installed 2 | . . . . . . . . . . . . . . . . 2 Triggered 1 | . . . . . . . . . . . . . . . . 1 Most Traps Carried 6 | . . . . . . . . . . . . . . . 6 6 Machines | -11 -10 -10 -9 -9 -9 -8 -8 -8 -8 -7 -7 -7 -7 -6 -6 -6 ---------- Run | Yrd Mat Min Mat Min Exi Min Mat Gar Mat Fac Gar Fac Gar Fac Gar Fac Machines Disabled 47 | . . 1 . . . . 4 5 . 6 8 . 10 . 8 5 Max in Single Turn 4 | . . 1 . . . . 1 1 . 4 2 . 2 . 1 1 Garrison Access 1 | . . . . . . . . . . . . . . . . 1 Garrison Relay 17 | . . . . . . . . 4 . . 5 . 4 . 4 . Phase Generator 3 | . . . . . . . . 1 . . 1 . 1 . . . Machines Repaired . | . . . . . . . . . . . . . . . . . Machines Dismantled . | . . . . . . . . . . . . . . . . . Machines Sabotaged . | . . . . . . . . . . . . . . . . . Overloaded Fab Kills . | . . . . . . . . . . . . . . . . . Hacking | -11 -10 -10 -9 -9 -9 -8 -8 -8 -8 -7 -7 -7 -7 -6 -6 -6 --------- Run | Yrd Mat Min Mat Min Exi Min Mat Gar Mat Fac Gar Fac Gar Fac Gar Fac Machines Accessed 56 | . 8 . 1 . 5 . 10 3 6 6 3 2 2 4 3 3 Terminals 34 | . 6 . 1 . . . 7 3 5 2 3 . 2 . 3 2 Fabricators 4 | . . . . . . . . . . 2 . 1 . 1 . . Repair Stations . | . . . . . . . . . . . . . . . . . Recycling Units 5 | . 2 . . . . . 1 . . 1 . . . 1 . . Scanalyzers 3 | . . . . . . . 1 . 1 . . . . 1 . . Garrison Access 5 | . . . . . . . 1 . . 1 . 1 . 1 . 1 Total Hacks 162 | . 28 . 2 . 28 . 38 7 17 9 6 2 4 7 7 7 Successful 82 | . 9 . 2 . 28 . 18 2 9 3 2 2 1 2 . 4 Failed 79 | . 19 . . . . . 20 5 8 6 4 . 3 4 7 3 Catastrophic 15 | . 1 . . . . . 4 1 2 3 1 . 1 . . 2 Database Lockouts 1 | . . . . . . . . . . . . . . 1 . . Manual 65 | . 23 . 2 . 1 . 25 . 11 . . . . . . 3 Terminals 100 | . 21 . 2 . . . 28 7 15 4 6 . 4 . 7 6 Fabricators 5 | . . . . . . . . . . 2 . 1 . 2 . . Repair Stations . | . . . . . . . . . . . . . . . . . Recycling Units 14 | . 7 . . . . . 4 . . 2 . . . 1 . . Scanalyzers 10 | . . . . . . . 5 . 2 . . . . 3 . . Garrison Access 5 | . . . . . . . 1 . . 1 . 1 . 1 . 1 Terminal Hacks 50 | . 2 . 1 . 28 . 6 2 5 . 2 . 1 . . 3 Record 28 | . . . . . 27 . . . 1 . . . . . . . Open Door 1 | . . . . . . . . . . . 1 . . . . . Branch Access Points 3 | . . . 1 . . . 1 . . . . . . . . 1 Emergency Access Points 2 | . . . . . . . . 1 . . 1 . . . . . Terminal Index 2 | . 1 . . . . . 1 . . . . . . . . . Unreport Threat 2 | . . . . . . . . . 2 . . . . . . . Hauler Manifests 1 | . . . . . . . . . . . . . . . . 1 Zone Layout 8 | . 1 . . . . . 4 . 2 . . . . . . 1 Security Stations 2 | . . . . . . . . 1 . . . . 1 . . . Proto ID Catalog 1 | . . . . . 1 . . . . . . . . . . . Fabricator Hacks 2 | . . . . . . . . . . 1 . 1 . . . . Network Status 2 | . . . . . . . . . . 1 . 1 . . . . Repair Station Hacks . | . . . . . . . . . . . . . . . . . Recycling Unit Hacks 3 | . 1 . . . . . 1 . . 1 . . . . . . Retrieve Components 3 | . 1 . . . . . 1 . . 1 . . . . . . Scanalyzer 8 | . . . . . . . 5 . 2 . . . . 1 . . Insert Component 1 | . . . . . . . 1 . . . . . . . . . Analyze 1 | . . . . . . . 1 . . . . . . . . . Retrieve Study 6 | . . . . . . . 3 . 2 . . . . 1 . . Garrison Access Hacks 5 | . . . . . . . 1 . . 1 . 1 . 1 . 1 Unlock Access 4 | . . . . . . . 1 . . 1 . 1 . 1 . . Seal Access 1 | . . . . . . . . . . . . . . . . 1 Unauthorized Hacks 14 | . 6 . 1 . . . 5 . 2 . . . . . . . Terminals 13 | . 5 . 1 . . . 5 . 2 . . . . . . . Botnet 2 | . . . . . . . . . 2 . . . . . . . Skim 11 | . 5 . 1 . . . 5 . . . . . . . . . Fabricators . | . . . . . . . . . . . . . . . . . Repair Stations . | . . . . . . . . . . . . . . . . . Recycling Units 1 | . 1 . . . . . . . . . . . . . . . Tunnel 1 | . 1 . . . . . . . . . . . . . . . Scanalyzers . | . . . . . . . . . . . . . . . . . Garrison Access . | . . . . . . . . . . . . . . . . . Data Cores Recovered . | . . . . . . . . . . . . . . . . . Used . | . . . . . . . . . . . . . . . . . Hacking Detections 39 | . 8 . 1 . . . 7 2 5 4 3 1 1 2 3 2 Full Trace Events 6 | . 1 . . . . . . 1 1 2 . . . . 1 . Feedback Events . | . . . . . . . . . . . . . . . . . Feedback Blocked . | . . . . . . . . . . . . . . . . . Robot Schematics Acquired . | . . . . . . . . . . . . . . . . . Robots Built . | . . . . . . . . . . . . . . . . . Authchips . | . . . . . . . . . . . . . . . . . Time . | . . . . . . . . . . . . . . . . . Total Robot Build Rating . | . . . . . . . . . . . . . . . . . Part Schematics Acquired 1 | . . . . . . . 1 . . . . . . . . . Parts Built . | . . . . . . . . . . . . . . . . . Authchips . | . . . . . . . . . . . . . . . . . Time . | . . . . . . . . . . . . . . . . . Total Part Build Rating . | . . . . . . . . . . . . . . . . . Part Studies Acquired 6 | . . . . . . . 3 . 2 . . . . 1 . . Parts Repaired . | . . . . . . . . . . . . . . . . . Time . | . . . . . . . . . . . . . . . . . Parts Recycled . | . . . . . . . . . . . . . . . . . Recycled Matter . | . . . . . . . . . . . . . . . . . Retrieved Matter . | . . . . . . . . . . . . . . . . . Retrieved Components 11 | . . . . . . . 9 . . 2 . . . . . . Parts Scanalyzed 1 | . . . . . . . 1 . . . . . . . . . Part Schematics Acquired 1 | . . . . . . . 1 . . . . . . . . . Parts Damaged . | . . . . . . . . . . . . . . . . . Bothacking | -11 -10 -10 -9 -9 -9 -8 -8 -8 -8 -7 -7 -7 -7 -6 -6 -6 ------------ Run | Yrd Mat Min Mat Min Exi Min Mat Gar Mat Fac Gar Fac Gar Fac Gar Fac Used RIF Installer 5 | . . . . . . . . 1 . . 1 . 2 . 1 . Coupler Efficiency 1 | . . . . . . . . . . . . . 1 . . . Code Merge 1 | . . . . . . . . . . . . . . . 1 . Threat Obfuscator 1 | . . . . . . . . . . . 1 . . . . . Patrol Navigation 1 | . . . . . . . . . . . . . 1 . . . Robots Hacked 69 | . . . . . 4 . . . . 8 11 . 11 7 14 14 Non-combat 14 | . . . . . 3 . . . . 1 . . . 3 . 7 Combat 55 | . . . . . 1 . . . . 7 11 . 11 4 14 7 Robot Hacks Applied 81 | . . . . . 5 . . . . 9 11 . 11 9 14 22 parse_system 9 | . . . . . 5 . . . . . 1 . 1 . . 2 no_distress 3 | . . . . . . . . . . . . . . . . 3 map_walls 1 | . . . . . . . . . . . . . . 1 . . drop_inventory 1 | . . . . . . . . . . 1 . . . . . . purge_threat 2 | . . . . . . . . . . . . . . . . 2 block_reporting 1 | . . . . . . . . . . . . . . . . 1 map_route 2 | . . . . . . . . . . . . . . 1 . 1 mark_security 2 | . . . . . . . . . . . . . . 1 . 1 find_garrison 2 | . . . . . . . . . . 1 . . . 1 . . link_fov 2 | . . . . . . . . . . . . . . 1 . 1 disrupt_area 1 | . . . . . . . . . . . 1 . . . . . overload_power 1 | . . . . . . . . . . . . . . . 1 . amplify_resonance 15 | . . . . . . . . . . 1 3 . 2 . 6 3 reboot_system 2 | . . . . . . . . . . . 1 . . . 1 . overwrite_iff 12 | . . . . . . . . . . 1 . . 3 2 1 5 formatsys_low 1 | . . . . . . . . . . . . . . . . 1 formatsys_high 24 | . . . . . . . . . . 5 5 . 5 2 5 2 Relay Couplers Released 67 | . . . . . . . . 14 . . 20 . 18 . 15 . Machine Destruction 67 | . . . . . . . . 14 . . 20 . 18 . 15 . Attached 29 | . . . . . . . . 1 3 2 5 . 7 2 8 1 Merged Code Value 103 | . . . . . . . . . . . . . . . 103 . Fabnet Peak Effective % . | . . . . . . . . . . . . . . . . . Robots Rewired 5 | . . . . . . . . . . . 3 . 2 . . . Allies Hacked 1 | . . . . . . . . . . . . . 1 . . . Hacks Repelled . | . . . . . . . . . . . . . . . . . Allies | -11 -10 -10 -9 -9 -9 -8 -8 -8 -8 -7 -7 -7 -7 -6 -6 -6 -------- Run | Yrd Mat Min Mat Min Exi Min Mat Gar Mat Fac Gar Fac Gar Fac Gar Fac Total Allies 43 | . . . . . . . . . . 6 10 . 10 4 7 6 Largest Group 8 | . . . . . . . . . . 2 8 . 3 2 4 2 Highest-Rated Group 200 | . . . . . . . . . . 45 200 . 94 61 131 29 Highest-Rated Ally 39 | . . . . . . . . . . 32 39 . 32 32 38 29 Total Orders 1 | . . . . . . . . . . . . . . . 1 . STAY 1 | . . . . . . . . . . . . . . . 1 . Ally Attacks 258 | . . . . . . . . . . 18 123 . 46 16 33 22 Total Damage 5043 | . . . . . . . . . . 379 2102 . 1336 344 737 145 Kills 43 | . . . . . . . . . . 4 16 . 13 1 7 2 Allies Corrupted 1 | . . . . . . . . . . . . . . 1 . . Allies Melted . | . . . . . . . . . . . . . . . . . Intel | -11 -10 -10 -9 -9 -9 -8 -8 -8 -8 -7 -7 -7 -7 -6 -6 -6 ------- Run | Yrd Mat Min Mat Min Exi Min Mat Gar Mat Fac Gar Fac Gar Fac Gar Fac Active Infowar (turns) 2454 | 19 1036 426 158 . . . . . . . . . . . . 815 A.S.S. 815 | . . . . . . . . . . . . . . . . 815 Seismic 1639 | 19 1036 426 158 . . . . . . . . . . . . . Robot Analysis Total . | . . . . . . . . . . . . . . . . . Derelict Logs Recovered 1 | . . . . 1 . . . . . . . . . . . . Drone Launches . | . . . . . . . . . . . . . . . . . Drone Recoveries . | . . . . . . . . . . . . . . . . . Exploration | -11 -10 -10 -9 -9 -9 -8 -8 -8 -8 -7 -7 -7 -7 -6 -6 -6 ------------- Run | Yrd Mat Min Mat Min Exi Min Mat Gar Mat Fac Gar Fac Gar Fac Gar Fac Turns Passed 20248 | 122 1036 426 455 1220 919 1038 1518 1989 738 1028 2500 82 2043 603 2576 1955 Spaces Moved 7555 | 63 472 340 196 479 376 380 465 761 264 394 903 34 738 210 920 560 Core 14 | 12 . . . . . . . . . . . . . . . 2 Treads 6886 | 51 472 1 125 479 376 380 465 761 264 394 761 34 738 210 920 455 Legs . | . . . . . . . . . . . . . . . . . Wheels 655 | . . 339 71 . . . . . . . 142 . . . . 103 Hover . | . . . . . . . . . . . . . . . . . Flight . | . . . . . . . . . . . . . . . . . Fastest Speed 50 | 50 160 90 90 240 240 240 200 220 220 220 130 240 240 240 240 175 Average Speed 218 | 139 160 90 142 240 240 240 235 220 220 220 218 240 240 240 240 246 Slowest Speed 600 | 160 160 160 240 240 240 240 240 220 220 220 320 240 240 240 320 600 Overloaded Moves . | . . . . . . . . . . . . . . . . . Propulsion Burnouts . | . . . . . . . . . . . . . . . . . Robots Hopped . | . . . . . . . . . . . . . . . . . Potential Cave-ins 2 | . . . . . . . . . . . . . . . . 2 Cave-ins Triggered 2 | . . . . . . . 1 . . . . . . . . 1 Exploration Rate (%) 52 | 5 72 73 22 96 71 88 44 90 32 15 90 2 92 7 83 17 Regions Visited 16 Branch Regions 4 Pre-discovered Areas 7 | . 2 . . . 1 . 4 . . . . . . . . . Known Exits Taken 7 | . 1 1 1 . . . 1 . . 1 . 1 . 1 . . Unknown Exits Taken 5 | 1 . . . 1 1 1 . . 1 . . . . . . . Scrap Searched 3 | . . 1 . 1 . 1 . . . . . . . . . . Spaces Dug 70 | . . . . . . . . . . 50 2 . . 6 . 12 Terrain Destroyed 332 | . . . . . . . 62 13 8 58 76 . 70 8 . 37 Melee . | . . . . . . . . . . . . . . . . . Projectile 95 | . . . . . . . 24 13 8 11 1 . 1 8 . 29 AOE 237 | . . . . . . . 38 . . 47 75 . 69 . . 8 Terrain Rammed . | . . . . . . . . . . . . . . . . . Walls Destroyed . | . . . . . . . . . . . . . . . . . Machines Disabled . | . . . . . . . . . . . . . . . . . Actions | -11 -10 -10 -9 -9 -9 -8 -8 -8 -8 -7 -7 -7 -7 -6 -6 -6 --------- Run | Yrd Mat Min Mat Min Exi Min Mat Gar Mat Fac Gar Fac Gar Fac Gar Fac Total 10142 | 90 689 407 283 518 391 447 746 1001 385 524 1298 34 941 287 1147 954 Wait 928 | 6 178 38 4 10 . 19 118 104 60 40 107 . 47 44 10 143 Move 7541 | 62 471 339 195 478 375 379 465 760 263 394 902 34 737 210 918 559 Hop . | . . . . . . . . . . . . . . . . . Pick Up 245 | 11 5 1 14 4 6 7 30 24 14 12 42 . 28 2 18 27 Fast Attach 26 | . 3 . 3 . . . 6 2 2 3 3 . 2 1 . 1 Attach 121 | 7 1 3 4 1 . 4 10 8 4 6 17 . 13 2 14 27 Detach 7 | . . . . . . . 1 1 . . . . 1 . 1 3 Swap 91 | . . . 4 3 3 1 10 7 3 2 15 . 23 1 10 9 Drop 172 | . . . 9 4 2 2 27 27 13 11 30 . 25 . 9 13 Fire 961 | 4 31 26 50 18 . 35 79 56 26 56 170 . 63 27 154 166 Melee 5 | . . . . . 5 . . . . . . . . . . . Ram 3 | . . . . . . . . . . . . . . . . 3 Kick . | . . . . . . . . . . . . . . . . . Crush . | . . . . . . . . . . . . . . . . . Escape Stasis 39 | . . . . . . . . 12 . . 12 . 2 . 12 1 Rewire 1 | . . . . . . . . . . . . . . . 1 . Trap 2 | . . . . . . . . . . . . . . . . 2 Miscellaneous . | . . . . . . . . . . . . . . . . . Route ------- -11/Scrapyard -10/Materials (discovered 4 exits: *Mat x3 / *Min) -10/Mines (discovered 2 exits: *Mat x2) -9/Materials (discovered 2 exits: *Min x2) -9/Mines (discovered 3 exits: *Mat x2 / *Exi) -9/Exiles -8/Mines (discovered 2 exits: *Mat x2) -8/Materials (discovered 3 exits: *Fac x2 / Gar) -8/Garrison (discovered 4 exits: *Mat x4) -8/Materials -7/Factory (discovered 2 exits: Fac / Gar) -7/Garrison (discovered 3 exits: *Fac x3) -7/Factory -7/Garrison (discovered 3 exits: *Fac x3) -6/Factory -6/Garrison (discovered 3 exits: *Fac x3) -6/Factory (discovered 4 exits: Low x2 / Ext x2) History --------- Turn | Location | Event 5 | -11/Scrapyard | Discovered new exit (range 15) 123 | -11/Scrapyard | Entered Materials 315 | -10/Materials | Build established: Mutant 579 | -10/Materials | Discovered new exit (range 9) 717 | -10/Materials | Discovered new exit (range 14) 892 | -10/Materials | Identified exit to Materials 935 | -10/Materials | Learned location of Mines (-8) 988 | -10/Materials | Learned Storage security intel 1000 | -10/Materials | Learned location of 1 exit from Storage 1022 | -10/Materials | Identified exit to Mines 1159 | -10/Materials | Entered Mines 1163 | -10/Mines | Met a Derelict bent on vengeance 1467 | -10/Mines | Assembled infested the area 1472 | -10/Mines | Assisted by a Guerilla fighting off Assembled 1585 | -10/Mines | Entered Materials 1585 | -9/Materials | Evolved 2 slots: Utility x2 1604 | -9/Materials | Identified exit to Mines 2008 | -9/Materials | Build established: Scavenger-Mutant 2040 | -9/Materials | Entered Mines 2176 | -9/Mines | Found a hidden stash of uninstalled traps 2229 | -9/Mines | Learned Materials garrison access intel 2441 | -9/Mines | A weapon hastily lodged in a ceiling crevice suddenly fell to the ground 2613 | -9/Mines | Discovered new exit (range 14) 2950 | -9/Mines | Discovered new exit (range 13) 3248 | -9/Mines | Deemed a non-threat by the Exiles lab entrance 3248 | -9/Mines | Discovered new exit (range 5) 3260 | -9/Mines | Entered Exiles 3318 | -9/Exiles | Met 8R-AWN 3359 | -9/Exiles | Met EX-HEX 3507 | -9/Exiles | Met EX-DEC 3573 | -9/Exiles | Learned location of Zion (-6) 3766 | -9/Exiles | Met EX-BIN 3801 | -9/Exiles | Aligned with FarCom system 3804 | -9/Exiles | Given EX-Vault access code 3923 | -9/Exiles | Opened EX-Vault 3937 | -9/Exiles | Found 0b10 Alert Chip 3943 | -9/Exiles | Found AWS/Thermal 3954 | -9/Exiles | Found AWS/Gauss 4003 | -9/Exiles | Warned to stay clear of 0b10 Research branches 4148 | -9/Exiles | Discovered new exit (range 14) 4179 | -9/Exiles | Stole three prototypes: 0b10 Alert Chip, AWS/Thermal, AWS/Gauss 4179 | -9/Exiles | Entered Mines 4317 | -8/Mines | Core integrity fell below 50% 4433 | -8/Mines | Discovered new exit (range 9) 4899 | -8/Mines | Lost 3 parts (2n1w) 4997 | -8/Mines | Discovered new exit (range 9) 5217 | -8/Mines | Entered Materials 5217 | -8/Materials | Evolved 2 slots: Utility x2 5218 | -8/Materials | Loaded intel: 1 garrison access location 5847 | -8/Materials | Build established: Hacker-Mutant 5955 | -8/Materials | Discovered new exit (range 9) 6199 | -8/Materials | Learned location of Recycling (-7) 6241 | -8/Materials | Learned location of Lower Caves (-7) 6274 | -8/Materials | Learned location of 1 exit from Storage 6296 | -8/Materials | Learned location of 1 exit from Lower Caves 6306 | -8/Materials | Build established: Mutant 6360 | -8/Materials | Learned 8 Factory zone layouts 6517 | -8/Materials | Discovered new exit (range 13) 6533 | -8/Materials | Crushed by falling debris 6533 | -8/Materials | Core integrity fell below 50% 6554 | -8/Materials | Destroyed 11 combat bots 6564 | -8/Materials | Lost 4 parts (1p1n2u) 6735 | -8/Materials | Identified exit to Garrison 6735 | -8/Materials | Entered Garrison 6765 | -8/Garrison | Triggered checkpoint 6814 | -8/Garrison | Discovered new exit (range 5) 6929 | -8/Garrison | Triggered checkpoint 6975 | -8/Garrison | Learned Materials security intel 7005 | -8/Garrison | Triggered checkpoint 7053 | -8/Garrison | Installed Relay Interface Framework 7088 | -8/Garrison | Garrison Relay disabled 7127 | -8/Garrison | Build established: Scavenger-Mutant 7214 | -8/Garrison | AWS/Gauss suddenly broke down 7533 | -8/Garrison | Discovered new exit (range 14) 7581 | -8/Garrison | Triggered checkpoint 7666 | -8/Garrison | Garrison Relay disabled 7698 | -8/Garrison | Garrison Relay disabled 7889 | -8/Garrison | Triggered checkpoint 8044 | -8/Garrison | Phase Generator disabled 8052 | -8/Garrison | Triggered checkpoint 8103 | -8/Garrison | Triggered checkpoint 8149 | -8/Garrison | Discovered new exit (range 10) 8420 | -8/Garrison | Garrison Relay disabled 8563 | -8/Garrison | Build established: Bothacker-Mutant 8700 | -8/Garrison | Discovered new exit (range 8) 8724 | -8/Garrison | Entered Materials 9124 | -8/Materials | First assault squad dispatched 9221 | -8/Materials | Destroyed 7 combat bots 9306 | -8/Materials | Discovered new exit (range 11) 9462 | -8/Materials | Entered Factory 9462 | -7/Factory | Evolved 2 slots: Utility x2 9463 | -7/Factory | Identified exit to Factory 9464 | -7/Factory | FarCom data flow suspended 10489 | -7/Factory | Identified exit to Garrison 10490 | -7/Factory | Entered Garrison 10490 | -7/Garrison | Accompanied by 1 ally 10518 | -7/Garrison | Triggered checkpoint 10566 | -7/Garrison | Triggered checkpoint 10595 | -7/Garrison | Garrison Relay disabled 10700 | -7/Garrison | Rescued a captive Derelict 10707 | -7/Garrison | Rescued a captive Derelict 10781 | -7/Garrison | Triggered checkpoint 10913 | -7/Garrison | Lost 6 allies 10943 | -7/Garrison | Garrison Relay disabled 11160 | -7/Garrison | Triggered checkpoint 11217 | -7/Garrison | Garrison Relay disabled 11589 | -7/Garrison | Discovered new exit (range 13) 11763 | -7/Garrison | Phase Generator disabled 11954 | -7/Garrison | Triggered checkpoint 11977 | -7/Garrison | Garrison Relay disabled 12100 | -7/Garrison | Triggered checkpoint 12109 | -7/Garrison | Discovered new exit (range 15) 12255 | -7/Garrison | Lost 3 parts (1p2u) 12492 | -7/Garrison | Triggered checkpoint 12635 | -7/Garrison | Build established: Hauler-Mutant 12808 | -7/Garrison | Garrison Relay disabled 12927 | -7/Garrison | Discovered new exit (range 8) 12966 | -7/Garrison | Expanded RIF knowledge: Threat Obfuscation 12990 | -7/Garrison | Entered Factory 13072 | -7/Factory | Identified exit to Garrison 13072 | -7/Factory | Entered Garrison 13113 | -7/Garrison | Expanded RIF knowledge: Coupler Efficiency 13132 | -7/Garrison | Triggered checkpoint 13169 | -7/Garrison | Garrison Relay disabled 13477 | -7/Garrison | AWS/Thermal suddenly broke down 13484 | -7/Garrison | Core integrity fell below 50% 13510 | -7/Garrison | Build established: Bothacker-Mutant 13552 | -7/Garrison | Phase Generator disabled 13682 | -7/Garrison | Triggered checkpoint 13774 | -7/Garrison | Triggered checkpoint 13774 | -7/Garrison | Learned Factory security intel 13801 | -7/Garrison | Garrison Relay disabled 13857 | -7/Garrison | Expanded RIF knowledge: Patrol Navigation 13961 | -7/Garrison | Discovered exit to Factory (range 14) 14155 | -7/Garrison | Build established: Botlord-Mutant 14168 | -7/Garrison | Triggered checkpoint 14304 | -7/Garrison | Discovered exit to Factory (range 5) 14331 | -7/Garrison | Triggered checkpoint 14461 | -7/Garrison | Garrison Relay disabled 14734 | -7/Garrison | Triggered checkpoint 14827 | -7/Garrison | Garrison Relay disabled 14935 | -7/Garrison | Discovered exit to Factory (range 10) 14990 | -7/Garrison | H-XX Assembler disabled 15047 | -7/Garrison | Found Prototype Device 15115 | -7/Garrison | Entered Factory 15115 | -6/Factory | Accompanied by 1 ally 15115 | -6/Factory | Evolved 2 slots: Utility x2 15506 | -6/Factory | Allied Derelicts emerged from ambush trap array 15531 | -6/Factory | Central database locked down 15718 | -6/Factory | Identified exit to Garrison 15718 | -6/Factory | Entered Garrison 15718 | -6/Garrison | Accompanied by 1 ally 15814 | -6/Garrison | Triggered checkpoint 15853 | -6/Garrison | Garrison Relay disabled 15916 | -6/Garrison | Rescued a captive Derelict 16093 | -6/Garrison | Discovered new exit (range 13) 16536 | -6/Garrison | Triggered checkpoint 16629 | -6/Garrison | Expanded RIF knowledge: Code Merge 16662 | -6/Garrison | Garrison Relay disabled 16690 | -6/Garrison | Triggered checkpoint 16814 | -6/Garrison | Triggered checkpoint 16876 | -6/Garrison | Discovered new exit (range 13) 16906 | -6/Garrison | Triggered checkpoint 16940 | -6/Garrison | Lost 3 allies 17057 | -6/Garrison | Garrison Relay disabled 17946 | -6/Garrison | Discovered new exit (range 15) 18168 | -6/Garrison | Triggered checkpoint 18215 | -6/Garrison | Garrison Relay disabled 18294 | -6/Garrison | Entered Factory 18343 | -6/Factory | Identified exit to Lower Caves 18343 | -6/Factory | Identified exit to Extension 18842 | -6/Factory | P-60 Hacker assimilated allied Technician 5a 18883 | -6/Factory | System corruption reached 10% 18973 | -6/Factory | Spotted B-75 Beast 19005 | -6/Factory | Destroyed B-75 Beast 19337 | -6/Factory | Core integrity fell below 50% 19364 | -6/Factory | Identified Active Sensor Suite 20050 | -6/Factory | Build established: Botlord-Skirmisher 20064 | -6/Factory | Crushed by falling debris 20065 | -6/Factory | Core integrity fell below 20% 20219 | -6/Factory | Lost 3 parts (1p1u1w) 20249 | -6/Factory | Destroyed by X-62 Marksman with Gauss Rifle Last Messages --------------- 20234_ U-05 Engineer knocked back. 20235_ K-01 Serf collects debris. 20235_ U-05 Engineer builds a Wall. 20235_ K-01 Serf collects debris. 20236_ U-05 Engineer lays Concrete. 20236_ Acquired 101 matter. 20237_ U-05 Engineer lays Concrete. 20237_ U-05 Engineer builds a Wall. 20237_ K-01 Serf collects debris. 20237_ U-05 Engineer builds a Wall. 20238_ U-05 Engineer lays Concrete. 20238_ K-01 Serf collects debris. 20238_ U-05 Engineer builds a Wall. 20240_ U-05 Engineer lays Concrete. 20241_ K-01 Serf collects debris. 20241_ U-05 Engineer builds a Wall. 20243_ U-05 Engineer lays Concrete. 20243_ K-01 Serf collects debris. 20244_ U-05 Engineer builds a Wall. 20248_ System corrupted: Heat flow error (+189). Map ----- +----------------------------------------------------+ | ??????????????????????# #????????????????????? | | ??????????????????????# ###########??????????? | | ??????????????????????# ????????? | | ?????????????########## % ????????? | | ?????????????# # """ """ """?????????? | | ?????????????# """ =# """ """?????????????? | | ?????????????# """ # """ """ ????????????? | | ?????????????# """ # ??????????? | | ?????????????# + ??????????? | | ?????????????# # ??????????? | | ?????????????# ] # ??????????? | | ?????????????# ] # ##+#??????????? | | ?????????????# ! ## #######?????????????? | | ?????????????###########^ ^#???????????????????? | | ??????????????????# ##?# # ??????????????????? | | ??????????????????# #??# + ??????????????????? | | ??????????????????###??# # "?????????????????? | | ??????????????########## # ????????????????? | | ??????????????# # #? ????????????????? | | ??????????????# """ # #?? ???????????????? | | ?????????????## # % #???????????????????? | | ?????????????## *# #???????????????????? | | ??????######### !*+ #???????????????????? | | ??????# # % !=# #???????????????????? | | ???????###### # =[ # #???????????????????? | | ????????????### !%*=# @ #???????????????????? | | ????????????# # % =!]# t#???????????????????? | | ????????????# " ######"# t #???????????????????? | | ????????????# [ ## #???????????????????? | | ????????????### # ## #???????????????????? | | ??????????????########## #???????????????????? | | ???????????????????????# #???????????????????? | | ??????????????????????? #???????????????????? | | ???????????????????????T #???????????????????? | | ???????????????????????# #???????????????????? | | ???????????????????????#u #???????????????????? | | ???????????????????????# +???????????????????? | | ???????????????????????# #???????????????????? | | ???????????????????????? #???????????????????? | | ???????????????????????? #???????????????????? | | ???????????????????????? ?????????????????????? | | ?????????????????????????????????????????????????? | | ?????????????????????????????????????????????????? | | ?????????????????????????????????????????????????? | | ?????????????????????????????????????????????????? | | ?????????????????????????????????????????????????? | | ?????????????????????????????????????????????????? | | ?????????????????????????????????????????????????? | | ?????????????????????????????????????????????????? | | ?????????????????????????????????????????????????? | +----------------------------------------------------+ Best States ------------- Heat Dissipation 64 Energy Generation 21 Energy Capacity 310 Matter Stores 300 Matter Capacity 300 Sight Range 16 Robot Scan Range 20 Terrain Scan Density 10 Additional Mass Support 12 Armor Coverage 225 Utility Shielding 33 Weapon Shielding 66 Weapon Cycling 15 Phase Shifting 5 Evasion (%) 50 Target Analysis 9 Core Analysis 6 Recoil Reduction 2 Defensive Hacking 20 Relay Coupler Types 5 Relay Coupler Value 257 Authchip Count 4 Trap Extractor Capacity 6 Item Schematics ----------------- Enh. Autogun | -8/Materials | Scanalyzed Robot Schematics ------------------ None Fabricated ------------ Nothing Repaired ---------- Nothing Studied --------- Lgt. Treads | -8/Materials | Hacked Imp. Grenade Launcher | -8/Materials | Hacked Shock Bomb Launcher | -8/Materials | Hacked Minigun | -8/Materials | Hacked Hvy. Assault Cannon | -8/Materials | Hacked Magnetic Acceleration Cannon | -6/Factory | Hacked Alien Tech Used ----------------- None Achievements -------------- None Challenges ------------ None Game ------ Seed DataDeuteriumRail Manual? 0 Play Time 01:55:15 Cumulative 478.4 hours Start 2025.11.06 @ 16:44:51 End 2025.11.06 @ 21:03:26 Sessions 5 Manual Loads 0 Difficulty Rogue Special Mode None Game No. 607 Rogue 607 Adventurer 0 Explorer 0 Win Type - Total 14 Types 6/0/2/2/1/0/2/1/0/0 Lore% 90 Gallery% 85 Achievement% 63 Wizard Run 0 Options --------- Layout 0 ASCII 0 Keyboard 0 Movement Mouse Keybinds 0 Fullscreen 1 Font 24/Terminus Map View 76x50 Zoom Use 0% Tactical HUD 1 Map Filters NONE Filters NONE Steam 1 RUN: 0f4f0be8-d7ec-4f28-88f1-1b25ac9b15cf